bitfinex/quotes_ETHUSD_20240916
["timestamp","ask_amount","ask_price","bid_price","bid_amount"]
[1726497451568,4.37989,2283.2,2282.7,0.54511726]
[1726497451733,4.37989,2283.2,2282.7,0.10702126]
[1726497451924,3.11271833,2283.5,2282.3,0.23713213]
[1726497452140,4.38001,2283.1,2282.4,8.86945126]
[1726497452323,4.37999,2283.2,2282.4,4.48821126]
[1726497452533,4.38022,2283.0,2282.5,0.47253434]
[1726497452731,2.4107,2283.5,2282.8,2.3556]
[1726497452975,4.38012,2283.1,2282.8,2.3556]
[1726497453175,5.4107,2283.5,2282.9,0.10702126]
[1726497453332,4.3802,2283.0,2282.9,0.10702126]
[1726497453531,4.3802,2283.0,2282.5,2.3556]
[1726497453841,4.38003,2283.1,2282.9,0.10702126]
[1726497454027,4.38003,2283.1,2282.6,4.38093]
[1726497454229,4.37984,2283.2,2283.0,0.10702126]
[1726497454433,5.4107,2283.5,2282.7,0.76301821]
[1726497454627,4.3801,2283.1,2282.5,6.73671]
[1726497454961,4.37975,2283.3,2282.7,4.38066]
[1726497455138,4.3811,2282.6,2282.0,4.38202]
[1726497455339,4.38109,2282.6,2282.0,4.38202]
[1726497455665,2.3722,2282.8,2281.8,2.2978093]
[1726497455666,6.75292,2282.8,2282.1,8.76363]
[1726497455967,4.38072,2282.8,2282.2,4.3817]
[1726497456123,8.76137,2282.8,2282.2,4.3817]
[1726497456321,4.38068,2282.8,2282.2,5.258051]
[1726497456566,4.38079,2282.7,2282.2,0.876351]
[1726497457022,4.38102,2282.6,2282.2,0.876351]
[1726497457225,8.76166,2282.7,2282.2,0.876351]
[1726497457447,4.38096,2282.6,2281.9,0.22978093]
[1726497457825,8.76205,2282.6,2282.0,4.3821]
[1726497458044,4.38096,2282.6,2282.1,4.38182]
[1726497458354,4.3809,2282.7,2282.0,5.07307902]
[1726497458537,8.76183,2282.7,2282.1,4.38181]
[1726497458737,4.3809,2282.7,2282.2,4.3817]
[1726497458946,4.38078,2282.7,2282.2,4.3817]
[1726497459183,4.38078,2282.7,2282.1,4.38181]
[1726497459334,4.38097,2282.6,2282.1,4.38181]
[1726497459528,4.38078,2282.7,2282.1,9.66297609]
[1726497459743,4.38078,2282.7,2282.2,4.3817]
[1726497460167,4.38051,2282.9,2282.3,4.38152]
[1726497460483,4.38072,2282.8,2282.3,4.38145]
[1726497460645,4.38072,2282.8,2282.3,8.7629]
[1726497460978,9.72417,2283.1,2282.4,4.38119]
[1726497461163,7.38007,2283.1,2282.5,4.38115]
[1726497461329,4.38039,2283.0,2282.4,5.31037166]
[1726497461535,4.38039,2283.0,2282.4,5.31036166]
[1726497462083,7.38007,2283.1,2282.5,0.77683617]
[1726497462232,2.4922,2283.4,2282.8,4.38056]
[1726497462434,4.37963,2283.3,2282.8,4.38049]
[1726497462643,4.37963,2283.3,2282.8,4.38048]
[1726497462844,4.37963,2283.3,2282.6,4.38081]
[1726497462845,4.38009,2283.1,2282.6,4.38081]
[1726497463134,5.066963,2283.3,2282.7,4.38075]
[1726497463471,4.37992,2283.2,2282.7,4.38075]
[1726497463769,4.38003,2283.1,2282.6,4.38081]
[1726497463947,4.37992,2283.2,2282.7,4.38067]
[1726497465346,4.3799,2283.2,2282.7,4.38067]
[1726497465546,4.3799,2283.2,2282.6,4.818891]
[1726497465746,4.3799,2283.2,2282.7,4.38065]
[1726497465942,3.0,2283.5,2283.0,4.38018]
[1726497466144,4.37956,2283.4,2282.8,6.75065]
[1726497466367,4.37971,2283.3,2282.8,7.51780201]
[1726497466550,4.3796,2283.4,2282.9,4.38038]
[1726497466770,4.3796,2283.4,2282.9,5.61830411]
[1726497466942,8.75917,2283.4,2282.9,5.61830411]
[1726497467144,4.37965,2283.3,2282.9,5.61830411]
[1726497467341,4.37965,2283.3,2282.9,4.38029]
[1726497467648,4.37957,2283.4,2282.9,4.38029]
[1726497467955,4.37954,2283.4,2283.0,0.10800941]
[1726497468750,4.37971,2283.3,2283.0,0.10800941]
[1726497468964,4.37983,2283.2,2282.8,2.3702]
[1726497469194,4.37963,2283.3,2283.1,0.10800941]
[1726497469357,4.37983,2283.2,2282.8,2.3702]
[1726497469697,4.37983,2283.2,2282.8,6.75078]
[1726497469867,4.3796,2283.4,2282.9,4.38024]
[1726497470203,4.3796,2283.4,2283.0,4.38018]
[1726497470386,4.37931,2283.5,2282.8,7.863772]
[1726497470588,4.37962,2283.3,2282.9,4.38037]
[1726497470901,4.37926,2283.5,2282.9,8.76065]
[1726497471070,4.37906,2283.6,2283.1,4.37992]
[1726497471278,4.37928,2283.5,2283.1,4.37992]
[1726497471636,4.37906,2283.6,2283.2,4.37973]
[1726497471902,8.75819,2283.6,2283.2,4.37973]
[1726497472195,4.83488352,2284.0,2283.4,4.37932]
[1726497472398,4.37848,2283.9,2283.4,8.75866]
[1726497472556,4.83488352,2284.0,2283.5,4.37924]
[1726497472762,4.83488352,2284.0,2283.5,8.75837]
[1726497472959,4.83488352,2284.0,2283.5,4.37913]
[1726497473956,4.37848,2283.9,2283.4,4.3793]
[1726497474306,0.45646352,2284.0,2283.4,0.7140673]
[1726497474510,0.45646352,2284.0,2283.8,4.37857]
[1726497475307,0.45646352,2284.0,2283.8,4.37856]
[1726497475607,0.45646352,2284.0,2283.9,6.81447]
[1726497476306,0.45646352,2284.0,2283.9,7.933773]
[1726497476461,0.45646352,2284.0,2283.9,3.555303]
[1726497476998,0.45646352,2284.0,2283.9,2.436]
[1726497478067,0.45646352,2284.0,2283.3,4.37959]
[1726497478068,4.83484352,2284.0,2283.3,6.69526]
[1726497478269,4.37809,2284.1,2283.4,4.37931]
[1726497478500,4.37809,2284.1,2283.5,4.37908]
[1726497478664,4.37809,2284.1,2283.6,4.37902]
[1726497479004,4.37809,2284.1,2283.5,4.37908]
[1726497479005,4.37829,2284.0,2283.5,4.37908]
[1726497479208,6.76481,2284.2,2283.4,0.7133233]
[1726497479500,4.3796,2283.4,2283.0,9.7537]
[1726497479704,4.3796,2283.4,2283.0,4.42551239]
[1726497479857,4.37918,2283.6,2283.0,2.3537]
[1726497480176,4.37886,2283.7,2283.0,6.73375]
[1726497480509,4.3786,2283.9,2283.4,4.3794]
[1726497480809,4.3784,2284.0,2283.4,4.3794]
[1726497480959,4.37839,2284.0,2283.5,2.92184]
[1726497481161,6.75453,2284.4,2283.5,2.92184]
[1726497481162,8.7561,2284.2,2283.5,6.86298]
[1726497481448,8.7561,2284.2,2283.7,4.37883]
[1726497481449,4.37802,2284.2,2283.7,4.37883]
[1726497481635,4.37809,2284.1,2283.6,0.686298]
[1726497482022,4.37809,2284.1,2283.6,5.065338]
[1726497482199,4.37809,2284.1,2283.7,1.1928298]
[1726497482593,4.37802,2284.2,2283.7,5.5716698]
[1726497482797,4.37802,2284.2,2283.7,5.5715898]
[1726497483034,4.37802,2284.2,2283.8,0.10248651]
[1726497483236,4.37802,2284.2,2283.8,0.73852394]
[1726497483406,4.37772,2284.3,2283.8,5.01457743]
[1726497483608,0.0382093,2284.6,2283.9,0.10248651]
[1726497483809,4.37828,2284.0,2283.9,0.10248651]
[1726497484037,8.75656,2284.0,2283.9,0.10248651]
[1726497484203,8.75656,2284.0,2283.2,9.6669]
[1726497484204,4.37867,2283.8,2283.3,4.37962]
[1726497484541,6.86341,2284.1,2283.4,1.9416098]
[1726497484751,4.37902,2283.7,2283.4,0.0989938]
[1726497484905,4.379,2283.7,2283.2,2.2669]
[1726497485246,8.75795,2283.7,2283.3,0.7636688]
[1726497485420,4.37895,2283.7,2283.3,0.7636688]
[1726497485802,8.75791,2283.7,2283.3,0.7636688]
[1726497486416,4.37888,2283.7,2283.3,0.7636688]
[1726497486611,4.37888,2283.7,2283.3,0.0989938]
[1726497486831,4.37859,2283.9,2283.3,4.56602034]
[1726497487042,4.3788,2283.8,2283.3,1.20884057]
[1726497487377,4.3788,2283.8,2283.4,0.0989938]
[1726497487378,4.37896,2283.7,2283.4,0.0989938]
[1726497487496,4.37889,2283.7,2283.4,0.0989938]
[1726497487898,4.37924,2283.5,2283.4,0.0989938]
[1726497488507,4.37924,2283.5,2283.2,2.2669]
[1726497488834,4.37924,2283.5,2283.2,2.931596]
[1726497489047,4.37924,2283.5,2283.3,0.0989938]
[1726497489426,4.37924,2283.5,2283.2,2.2669]
[1726497489618,4.37924,2283.5,2283.4,0.0989938]
[1726497489813,4.37924,2283.5,2283.2,2.2669]
[1726497490037,4.37924,2283.5,2283.4,0.0989938]
[1726497490237,4.37924,2283.5,2283.2,2.2669]
[1726497490455,4.37924,2283.5,2283.4,0.0989938]
[1726497490923,4.37924,2283.5,2283.2,2.2669]
[1726497491114,4.37896,2283.7,2283.3,0.0989938]
[1726497491318,4.37943,2283.4,2282.8,9.7097]
[1726497491527,4.37943,2283.4,2282.8,8.26005939]
[1726497491728,4.37943,2283.4,2282.9,0.0989938]
[1726497491937,4.37943,2283.4,2282.9,0.93489912]
[1726497492219,4.37974,2283.3,2282.9,0.93489912]
[1726497492558,8.7604,2283.0,2282.9,0.0989938]
[1726497492758,22.9607,2283.0,2282.9,0.09442188]
[1726497492958,8.76308,2282.3,2282.2,0.0203783]
[1726497493166,8.76308,2282.3,2282.2,0.10985829]
[1726497493536,4.38154,2282.3,2282.2,0.10985829]
[1726497493736,3.0,2282.6,2282.2,0.10985829]
[1726497493737,4.38118,2282.5,2282.2,0.10985829]
[1726497493939,4.3808,2282.7,2282.2,0.10985829]
[1726497494137,4.38068,2282.8,2282.2,0.79745212]
[1726497494434,6.71169,2283.0,2282.4,4.3813]
[1726497494435,4.38029,2283.0,2282.4,4.3813]
[1726497494629,4.38029,2283.0,2282.4,4.38122]
[1726497494962,4.38069,2282.8,2282.5,0.53028476]
[1726497495120,4.38039,2282.9,2282.5,0.09216276]
[1726497495319,4.38047,2282.9,2282.2,4.4020783]
[1726497495521,5.3314,2283.3,2282.4,4.38125]
[1726497495721,4.38046,2282.9,2282.6,2.3016]
[1726497495958,4.38031,2283.0,2282.7,0.09185754]
[1726497496321,4.38052,2282.9,2282.7,0.09185754]
[1726497496849,4.38051,2282.9,2282.7,0.09185754]
[1726497497447,4.38024,2283.0,2282.7,0.09185754]
[1726497497666,4.8365522,2283.1,2282.7,0.09185754]
[1726497497667,4.38043,2282.9,2282.7,0.09185754]
[1726497497816,0.4564222,2283.1,2282.7,0.33120329]
[1726497498030,0.4564222,2283.1,2282.8,0.08759661]
[1726497498263,0.4564222,2283.1,2282.8,5.6163276]
[1726497498470,0.4564222,2283.1,2282.9,0.09175881]
[1726497498471,4.3802,2283.0,2282.9,0.09175881]
[1726497498759,11.0983,2283.0,2282.9,0.09175881]
[1726497499259,4.38069,2282.8,2282.3,4.38152]
[1726497499421,4.38039,2282.9,2282.4,0.66600983]
[1726497499622,2.3379,2283.0,2282.4,0.75776864]
[1726497499871,4.38104,2282.6,2282.4,0.09175881]
[1726497500224,4.38079,2282.7,2282.2,2.2785783]
[1726497500567,8.76308,2282.3,2282.2,0.0203783]
[1726497500863,4.38154,2282.3,2282.2,0.11062284]
[1726497501035,3.0,2282.6,2282.2,0.0203783]
[1726497501036,4.38102,2282.6,2282.2,0.0203783]
[1726497501359,4.38136,2282.4,2282.2,0.0203783]
[1726497501523,4.38136,2282.4,2282.3,0.09024454]
[1726497501724,4.38102,2282.6,2282.3,0.09024454]
[1726497501958,4.38119,2282.5,2282.3,0.09024454]
[1726497502271,8.7627,2282.4,2282.3,0.09024454]
[1726497502434,11.1777,2282.4,2282.3,0.09024454]
[1726497502827,11.1777,2282.4,2282.2,0.0203783]
[1726497502828,4.38135,2282.4,2281.8,4.38231]
[1726497503079,2.415,2282.7,2281.9,0.438231]
[1726497503080,4.38107,2282.6,2281.9,0.438231]
[1726497503361,4.38064,2282.8,2282.1,6.73089]
[1726497503566,4.38077,2282.7,2282.2,1.12005108]
[1726497503773,4.38097,2282.6,2282.3,0.08723639]
[1726497504275,4.38066,2282.8,2282.3,0.08723639]
[1726497504572,4.38066,2282.8,2282.3,0.44286514]
[1726497504742,8.76142,2282.8,2282.3,0.44286514]
[1726497504944,4.3808,2282.7,2282.3,0.44286514]
[1726497505677,4.38066,2282.8,2282.3,0.44286514]
[1726497505845,8.76061,2283.0,2282.4,4.86363851]
[1726497506047,8.76061,2283.0,2282.4,4.38118]
[1726497506267,8.76061,2283.0,2282.5,0.08702989]
[1726497506268,4.38029,2283.0,2282.5,0.08702989]
[1726497506547,4.38029,2283.0,2282.5,0.56941375]
[1726497506759,4.38058,2282.9,2282.6,2.2787]
[1726497506964,4.38058,2282.9,2282.7,0.08707476]
[1726497507168,4.38038,2283.0,2282.4,4.38124]
[1726497507479,8.75981,2283.2,2282.5,8.84924476]
[1726497507781,8.7598,2283.2,2282.6,5.3534689]
[1726497507963,4.38005,2283.1,2282.7,0.08694911]
[1726497508178,4.37984,2283.2,2282.7,0.63100191]
[1726497508355,2.3153,2283.3,2282.7,5.09925629]
[1726497508551,4.37948,2283.4,2282.8,0.08759945]
[1726497508855,4.37958,2283.4,2282.9,0.08685938]
[1726497509160,4.37984,2283.2,2283.0,0.08685938]
[1726497509362,4.37984,2283.2,2282.8,0.44675991]
[1726497509561,0.0380851,2283.5,2282.9,0.65719127]
[1726497509769,0.0380851,2283.5,2282.9,0.08685938]
[1726497510082,0.0380851,2283.5,2283.3,2.4681]
[1726497510279,0.0380851,2283.5,2283.3,6.84769]
[1726497510485,0.0380851,2283.5,2283.4,1.20954751]
[1726497510976,0.0380851,2283.5,2283.4,10.05598089]
[1726497511183,0.0380851,2283.5,2283.4,9.96840751]
[1726497511393,0.0380851,2283.5,2283.4,12.23580751]
[1726497511586,0.0380851,2284.2,2283.6,4.37903]
[1726497511587,4.37809,2284.1,2283.6,4.37903]
[1726497511795,4.37865,2283.9,2283.7,0.08614175]
[1726497511945,4.37859,2283.9,2283.7,0.08614175]
[1726497512151,4.37866,2283.8,2283.4,2.2674]
[1726497512391,4.37866,2283.8,2283.5,0.08614175]
[1726497512592,4.37821,2284.1,2283.5,0.08614175]
[1726497512761,4.37859,2283.9,2283.5,0.75944793]
[1726497513084,4.37857,2283.9,2283.5,0.08614175]
[1726497513454,8.75716,2283.9,2283.5,0.08614175]
[1726497513953,4.37901,2283.7,2283.5,0.08614175]
[1726497514286,4.37905,2283.6,2283.5,0.08614175]
[1726497514677,4.37905,2283.6,2283.1,2.4842]
[1726497514849,4.37905,2283.6,2283.5,0.08600725]
[1726497515217,4.37946,2283.4,2283.1,2.4842]
[1726497515403,4.37946,2283.4,2282.8,6.82085]
[1726497515549,4.37937,2283.5,2282.8,2.4404]
[1726497515886,4.37955,2283.4,2282.9,4.38038]
[1726497516191,4.37914,2283.6,2283.1,4.37995]
[1726497516357,4.37926,2283.5,2283.0,4.38004]
[1726497516560,8.758,2283.7,2283.2,4.37979]
[1726497516763,4.37898,2283.7,2283.3,0.087581]
[1726497517087,4.37906,2283.6,2283.3,0.087581]
[1726497517386,4.37919,2283.6,2283.3,0.087581]
[1726497517896,4.37925,2283.5,2283.0,4.38002]
[1726497518058,8.75861,2283.5,2283.0,6.24007]
[1726497518252,4.37925,2283.5,2283.0,6.24007]
[1726497519122,4.37925,2283.5,2283.1,5.004007]
[1726497519481,4.379,2283.7,2283.2,4.4673631]
[1726497519680,4.37898,2283.7,2283.3,2.50708106]
[1726497519877,4.37916,2283.6,2283.3,2.4195]
[1726497520192,4.37955,2283.4,2283.0,4.38018]
[1726497520391,8.75911,2283.4,2282.9,6.7998]
[1726497520586,8.75909,2283.4,2282.9,6.7998]
[1726497520791,4.37963,2283.3,2282.9,7.917846]
[1726497521179,8.75912,2283.4,2282.9,7.917846]
[1726497521378,4.37954,2283.4,2283.0,4.38018]
[1726497521678,4.37954,2283.4,2283.0,1.2298026]
[1726497522311,4.37954,2283.4,2283.0,5.6099826]
[1726497522524,4.3808,2282.7,2282.5,2.4061]
[1726497522738,4.38096,2282.6,2282.2,3.32422388]
[1726497523019,4.38096,2282.6,2282.3,0.66771797]
[1726497523176,4.38082,2282.7,2282.3,0.66771797]
[1726497523377,4.38082,2282.7,2282.4,0.83736119]
[1726497523719,4.3805,2282.9,2282.4,0.83736119]
[1726497523924,4.38012,2283.1,2282.2,2.4061]
[1726497524087,4.38012,2283.1,2282.1,4.38192]
[1726497524088,8.76027,2283.1,2282.6,2.2632]
[1726497524293,4.38012,2283.1,2282.7,0.66442]
[1726497524494,4.38022,2283.0,2282.7,0.66442]
[1726497524822,13.14117,2282.9,2282.8,0.07711174]
[1726497524980,13.14117,2282.9,2282.2,2.2792]
[1726497524981,4.3813,2282.5,2282.2,2.2792]
[1726497525174,4.381,2282.6,2282.3,0.07711174]
[1726497525879,4.38126,2282.5,2282.3,0.07711174]
[1726497527112,4.38135,2282.4,2282.3,0.07711174]
[1726497527317,4.38126,2282.5,2282.3,0.07711174]
[1726497528318,4.38135,2282.4,2282.3,0.07711174]
[1726497528523,8.7627,2282.4,2282.3,0.07711174]
[1726497528691,4.38253,2281.8,2281.5,9.8921851]
[1726497528891,4.38288,2281.6,2281.5,2.4921851]
[1726497529105,8.76576,2281.6,2281.5,0.0380851]
[1726497529421,13.75003219,2281.6,2281.5,0.0380851]
[1726497529634,9.36715219,2281.6,2281.5,0.0380851]
[1726497530434,8.76576,2281.6,2281.5,0.0380851]
[1726497530719,8.7653,2281.8,2281.5,0.0380851]
[1726497530918,4.38262,2281.8,2281.5,0.0380851]
[1726497531079,8.76526,2281.8,2281.5,0.0380851]
[1726497531282,3.0,2282.2,2281.5,0.0380851]
[1726497531283,4.38223,2282.0,2281.5,0.0380851]
[1726497531585,4.38187,2282.2,2281.6,4.3827]
[1726497532112,4.38145,2282.4,2281.8,4.3824]
[1726497533129,4.38156,2282.3,2281.8,4.3824]
[1726497533428,4.38145,2282.4,2281.8,2.3041]
[1726497533429,4.38184,2282.2,2281.8,2.3041]
[1726497533582,4.38184,2282.2,2281.8,3.02371497]
[1726497534221,8.76298,2282.4,2281.8,3.02371497]
[1726497534527,4.38106,2282.6,2281.8,3.02371497]
[1726497534824,6.85235,2282.8,2281.8,2.3041]
[1726497535037,4.38088,2282.7,2282.1,4.38178]
[1726497535179,6.85235,2282.8,2282.2,5.258119]
[1726497535519,4.38075,2282.8,2282.3,6.6871]
[1726497535885,8.7615,2282.8,2282.3,2.3057]
[1726497536217,4.38033,2283.0,2282.4,0.668743]
[1726497536423,8.76064,2283.0,2282.4,4.38124]
[1726497536721,4.37928,2283.5,2282.5,9.430784]
[1726497536722,4.38001,2283.1,2282.5,9.430784]
[1726497536897,4.38001,2283.1,2282.5,8.76208]
[1726497537100,4.38001,2283.1,2282.6,0.876208]
[1726497537306,4.38001,2283.1,2282.6,5.257168]
[1726497537481,4.38001,2283.1,2282.6,0.876208]
[1726497537826,4.38001,2283.1,2282.6,5.257168]
[1726497538025,4.37983,2283.2,2282.7,4.38077]
[1726497538224,4.38001,2283.1,2282.8,2.2597]
[1726497538426,8.75954,2283.3,2282.8,2.2597]
[1726497538723,4.38012,2283.1,2282.8,2.2597]
[1726497538886,4.38029,2283.0,2282.5,6.65792]
[1726497539234,4.38032,2283.0,2282.6,0.665792]
[1726497539433,4.38089,2282.7,2282.2,9.6769]
[1726497539736,4.38089,2282.7,2281.9,2.2769]
[1726497539737,4.38088,2282.7,2281.9,2.2769]
[1726497540026,4.38053,2282.9,2282.4,4.38125]
[1726497540242,4.38053,2282.9,2282.5,0.876276]
[1726497540384,4.38053,2282.9,2282.6,2.3127]
[1726497540784,4.38013,2283.1,2282.6,2.3127]
[1726497540785,8.76029,2283.1,2282.6,2.3127]
[1726497541009,4.3802,2283.0,2282.6,2.982072]
[1726497541209,4.37969,2283.3,2282.6,2.982072]
[1726497541407,4.37969,2283.3,2282.6,7.362922]
[1726497541408,4.38001,2283.1,2282.6,7.362922]
[1726497541715,4.38001,2283.1,2282.7,1.1743942]
[1726497541882,4.38094,2282.7,2282.3,2.4872]
[1726497542088,4.38059,2282.8,2282.3,6.86873]
[1726497542321,4.38059,2282.8,2282.4,0.24872]
[1726497542522,2.2982,2283.4,2282.5,4.38099]
[1726497542523,4.38014,2283.1,2282.5,4.38099]
[1726497542723,4.38014,2283.1,2282.6,0.901087]
[1726497542934,4.38014,2283.1,2282.4,4.62988]
[1726497542935,4.38048,2282.9,2282.4,4.62988]
[1726497543224,4.38073,2282.8,2282.4,0.24872]
[1726497543431,4.38048,2282.9,2282.4,0.24872]
[1726497543748,4.38048,2282.9,2282.5,0.07304288]
[1726497543897,4.38048,2282.9,2282.5,1.23019517]
[1726497544589,8.75948,2283.3,2282.8,4.38058]
[1726497544935,4.37986,2283.2,2282.9,2.2731]
[1726497545226,4.37986,2283.2,2282.9,2.34615185]
[1726497545660,8.75946,2283.3,2282.9,3.01884304]
[1726497545817,4.37972,2283.3,2282.9,3.01884304]
[1726497546160,4.37934,2283.5,2283.0,4.38019]
[1726497546361,4.37934,2283.5,2283.0,5.1201293]
[1726497546519,4.37934,2283.5,2283.1,0.07298904]
[1726497547023,4.3792,2283.6,2283.1,0.07298904]
[1726497547224,4.37934,2283.5,2283.1,0.38159187]
[1726497547439,4.37914,2283.6,2283.1,4.76158187]
[1726497547665,4.37914,2283.6,2283.2,0.98816012]
[1726497547957,4.37914,2283.6,2283.1,0.38159187]
[1726497548252,4.37914,2283.6,2283.2,0.0726302]
[1726497548614,4.3788,2283.8,2283.4,2.2921]
[1726497548846,4.4161151,2284.2,2283.5,4.46680442]
[1726497549063,4.37831,2284.0,2283.5,4.60836]
[1726497549268,4.37831,2284.0,2283.5,4.68089845]
[1726497549424,4.37849,2283.9,2283.5,0.30176845]
[1726497549624,0.0380851,2284.2,2283.5,0.30176845]
[1726497549625,4.37829,2284.0,2283.6,0.0875681]
[1726497549856,4.37829,2284.0,2283.7,0.07232529]
[1726497550014,4.3782,2284.1,2283.7,0.07232529]
[1726497550214,0.0380851,2284.2,2283.7,4.45106529]
[1726497550426,0.0380851,2284.2,2283.8,0.5157122]
[1726497550670,0.0380851,2284.2,2283.9,2.3718]
[1726497550956,0.0380851,2284.2,2283.9,2.44412529]
[1726497552761,4.4160051,2284.2,2283.9,0.07232529]
[1726497552996,4.37822,2284.1,2283.9,0.07232529]
[1726497553192,4.37822,2284.1,2283.6,6.7732]
[1726497553494,4.37822,2284.1,2283.7,1.138152]
[1726497553663,4.37822,2284.1,2283.7,1.20893478]
[1726497553843,4.4160051,2284.2,2283.7,1.20893478]
[1726497554050,4.3781,2284.1,2283.7,1.20893478]
[1726497554450,4.37849,2283.9,2283.7,1.20893478]
[1726497554693,4.37849,2283.9,2283.7,0.07078278]
[1726497555055,4.3783,2284.0,2283.7,0.07078278]
[1726497555798,4.4160851,2284.2,2283.7,4.44963278]
[1726497555951,4.4160851,2284.2,2283.8,1.12228628]
[1726497556156,4.37809,2284.1,2283.8,1.19316767]
[1726497556352,4.3783,2284.0,2283.8,0.07088139]
[1726497556886,4.3783,2284.0,2283.9,0.07088139]
[1726497557110,4.37812,2284.1,2283.9,0.07088139]
[1726497557252,0.0380851,2284.2,2283.6,2.3942]
[1726497557452,4.37885,2283.7,2283.3,9.7897]
[1726497557702,4.3787,2283.8,2283.3,9.7897]
[1726497557703,4.37907,2283.6,2283.3,3.867649]
[1726497557852,4.37907,2283.6,2283.0,6.76975]
[1726497558058,4.37907,2283.6,2283.1,0.74786535]
[1726497558256,4.37882,2283.8,2283.2,4.37964]
[1726497558473,4.37877,2283.8,2283.3,4.46718942]
[1726497558681,4.37877,2283.8,2283.4,0.88468294]
[1726497558992,4.37926,2283.5,2283.3,0.07089035]
[1726497559167,4.37926,2283.5,2283.0,2.3897]
[1726497559168,4.37926,2283.5,2283.0,6.76988]
[1726497559507,4.37896,2283.7,2283.2,4.37972]
[1726497559797,4.37859,2283.9,2283.2,4.3797]
[1726497559964,4.37884,2283.8,2283.3,0.54186791]
[1726497560380,4.37908,2283.6,2283.3,0.54186791]
[1726497560693,4.37908,2283.6,2283.3,0.07124003]
[1726497560858,4.37908,2283.6,2283.1,4.6189]
[1726497561053,4.3788,2283.8,2283.2,4.4510321]
[1726497561260,3.0380851,2284.2,2283.5,2.3944]
[1726497561261,0.0380851,2284.2,2283.5,2.3944]
[1726497561475,4.37878,2283.8,2283.5,2.3944]
[1726497561793,4.37878,2283.8,2283.6,0.07121313]
[1726497561993,8.7577,2283.7,2283.6,0.07121313]
[1726497562297,8.7577,2283.7,2283.2,10.996262]
[1726497562298,4.37906,2283.6,2283.2,3.596262]
[1726497562498,4.37906,2283.6,2283.3,0.3835232]
[1726497562866,4.37885,2283.7,2283.3,0.3835232]
[1726497563564,4.37907,2283.6,2283.3,0.3835232]
[1726497563870,4.37885,2283.7,2283.3,0.3835232]
[1726497565387,8.75789,2283.7,2283.3,0.3835232]
[1726497565917,2.2773,2283.8,2283.2,1.201862]
[1726497566063,4.37985,2283.2,2282.9,2.4461]
[1726497566262,8.75937,2283.3,2282.9,2.4461]
[1726497566466,4.37994,2283.2,2283.0,0.682655]
[1726497566766,4.38011,2283.1,2282.6,6.65343]
[1726497566962,4.37994,2283.2,2282.6,6.65343]
[1726497566963,4.38058,2282.8,2282.7,0.665343]
[1726497567190,4.38091,2282.7,2282.3,2.2726]
[1726497567401,2.454,2283.2,2282.3,2.2726]
[1726497567402,4.38033,2283.0,2282.4,5.04676]
[1726497567570,4.38058,2282.8,2282.3,2.2726]
[1726497567769,4.38058,2282.8,2282.4,0.665421]
[1726497568011,4.3804,2282.9,2282.4,5.046761]
[1726497568260,4.38033,2283.0,2282.4,4.38125]
[1726497568427,4.38033,2283.0,2282.5,5.046505]
[1726497568428,4.3803,2283.0,2282.5,5.046505]
[1726497568611,4.3803,2283.0,2282.6,4.38095]
[1726497568808,2.3743,2283.0,2282.2,2.3781]
[1726497569013,4.38078,2282.7,2282.3,0.23781]
[1726497569359,4.3813,2282.5,2282.3,0.23781]
[1726497569644,4.3813,2282.5,2282.2,2.3781]
[1726497569848,4.38166,2282.3,2281.9,2.3781]
[1726497570055,4.38166,2282.3,2282.0,0.23781]
[1726497570239,4.3811,2282.6,2282.1,4.38192]
[1726497570461,4.3811,2282.6,2282.0,4.61982]
[1726497570747,2.3743,2283.0,2282.4,4.38125]
[1726497570947,4.38059,2282.8,2282.4,2.3507]
[1726497571114,4.38059,2282.8,2282.5,0.673212]
[1726497571545,2.3743,2283.0,2282.5,0.673212]
[1726497571546,4.38093,2282.7,2282.5,0.673212]
[1726497571765,4.38093,2282.7,2282.4,2.3507]
[1726497571917,4.38087,2282.7,2282.4,2.3507]
[1726497572309,4.38053,2282.9,2282.4,2.3507]
[1726497572512,8.76102,2282.9,2282.4,6.73189]
[1726497572745,4.38049,2282.9,2282.5,0.673189]
[1726497572947,4.38078,2282.7,2282.5,0.74393227]
[1726497573126,4.38078,2282.7,2282.5,0.07074327]
[1726497573315,4.38073,2282.8,2282.3,4.38152]
[1726497573515,8.76149,2282.8,2282.6,0.07062673]
[1726497573718,8.76149,2282.8,2282.4,1.125506]
[1726497573719,4.38073,2282.8,2282.4,1.125506]
[1726497573946,4.38058,2282.8,2282.7,0.07062673]
[1726497574120,4.38089,2282.7,2282.2,2.4919]
[1726497574450,4.38089,2282.7,2282.4,0.3617406]
[1726497575150,4.38099,2282.6,2282.4,0.3617406]
[1726497575449,4.38033,2283.0,2282.4,0.3617406]
[1726497575998,4.38,2283.2,2282.6,2.4339]
[1726497576155,4.38004,2283.1,2282.6,6.81477]
[1726497576357,4.37993,2283.2,2282.7,5.500352]
[1726497576583,4.37991,2283.2,2282.7,5.500242]
[1726497577088,6.72947,2283.6,2282.7,1.119582]
[1726497577089,4.38048,2282.9,2282.7,1.119582]
[1726497577292,4.38048,2282.9,2282.5,2.388]
[1726497577496,4.3806,2282.8,2282.6,0.2388]
[1726497577790,8.76106,2282.9,2282.6,0.2388]
[1726497578150,4.38048,2282.9,2282.6,0.2388]
[1726497578564,4.3802,2283.0,2282.6,0.2388]
[1726497578767,4.38043,2282.9,2282.6,0.2388]
[1726497579971,4.38044,2282.9,2282.6,0.2388]
[1726497580716,4.38077,2282.7,2282.2,2.4163]
[1726497580922,4.38122,2282.5,2282.2,2.4163]
[1726497581481,2.3076,2283.2,2282.3,4.38153]
[1726497581806,2.3076,2283.2,2282.3,4.62316]
[1726497581807,4.38082,2282.7,2282.3,4.62316]
[1726497582316,4.38014,2283.1,2282.6,6.81846]